[Event "Titled Tuesday Blitz May 10 Early 2022"]
[White "Bortnyk, Olexandr"]
[Black "Lashkin, Jegor"]
[WhiteFideId "14120828"]
[BlackFideId "13907808"]
[WhiteElo "2723"]
[BlackElo "2368"]
[Result "1-0"]
[Round "06"]
[TimeControl "180+1"]
[Date "2022.05.10"]
[WhiteClock "0:00:55"]
[BlackClock "0:00:02"]

1. d4 {[%clk 0:03:00]}  Nf6 {[%clk 0:02:58]} 2. Nc3 {[%clk 0:03:00]}  d5 {[%clk 0:02:58]} 3. Bf4 {[%clk 0:03:00]}  c5 {[%clk 0:02:58]} 4. e4 {[%clk 0:03:00]}  Nxe4 {[%clk 0:02:54]} 5. Nxe4 {[%clk 0:03:00]}  dxe4 {[%clk 0:02:55]} 6. dxc5 {[%clk 0:03:00]}  Qxd1+ {[%clk 0:02:33]} 7. Rxd1 {[%clk 0:03:01]}  Nc6 {[%clk 0:02:34]} 8. Bb5 {[%clk 0:03:00]}  Bd7 {[%clk 0:02:33]} 9. Ne2 {[%clk 0:02:59]}  a6 {[%clk 0:02:24]} 10. Ba4 {[%clk 0:02:58]}  f6 {[%clk 0:02:23]} 11. Nc3 {[%clk 0:02:58]}  e5 {[%clk 0:02:23]} 12. Be3 {[%clk 0:02:58]}  Bf5 {[%clk 0:02:01]} 13. O-O {[%clk 0:02:40]}  Rc8 {[%clk 0:01:57]} 14. b4 {[%clk 0:02:16]}  Kf7 {[%clk 0:01:43]} 15. a3 {[%clk 0:02:01]}  a5 {[%clk 0:01:31]} 16. Nd5 {[%clk 0:01:48]}  axb4 {[%clk 0:01:24]} 17. axb4 {[%clk 0:01:49]}  Be6 {[%clk 0:01:20]} 18. c3 {[%clk 0:01:43]}  Be7 {[%clk 0:01:10]} 19. Nxe7 {[%clk 0:01:31]}  Nxe7 {[%clk 0:00:56]} 20. Rd6 {[%clk 0:01:29]}  Rhd8 {[%clk 0:00:51]} 21. Rfd1 {[%clk 0:01:29]}  Rxd6 {[%clk 0:00:49]} 22. cxd6 {[%clk 0:01:26]}  Nd5 {[%clk 0:00:37]} 23. c4 {[%clk 0:01:01]}  Nc3 {[%clk 0:00:28]} 24. d7 {[%clk 0:01:00]}  Rd8 {[%clk 0:00:28]} 25. Bb6 {[%clk 0:01:00]}  Nxd1 {[%clk 0:00:08]} 26. Bxd8 {[%clk 0:00:59]}  Nb2 {[%clk 0:00:08]} 27. Bc7 {[%clk 0:00:56]}  Bxd7 {[%clk 0:00:08]} 28. Bxd7 {[%clk 0:00:57]}  Nxc4 {[%clk 0:00:08]} 29. Bb5 {[%clk 0:00:56]}  Nb2 {[%clk 0:00:07]} 30. Kf1 {[%clk 0:00:55]}  Ke6 {[%clk 0:00:08]} 31. Ke2 {[%clk 0:00:56]}  f5 {[%clk 0:00:06]} 32. Kd2 {[%clk 0:00:54]}  Kd5 {[%clk 0:00:06]} 33. Kc2 {[%clk 0:00:54]}  Nc4 {[%clk 0:00:05]} 34. Bxc4+ {[%clk 0:00:55]}  Kxc4 {[%clk 0:00:06]} 35. Bxe5 {[%clk 0:00:55]}  g6 {[%clk 0:00:07]} 36. Bd6 {[%clk 0:00:54]}  b6 {[%clk 0:00:07]} 37. h4 {[%clk 0:00:54]}  h6 {[%clk 0:00:06]} 38. Bf8 {[%clk 0:00:52]}  h5 {[%clk 0:00:04]} 39. g3 {[%clk 0:00:52]}  Kd4 {[%clk 0:00:03]} 40. Kd2 {[%clk 0:00:53]}  b5 {[%clk 0:00:02]} 41. Ke2 {[%clk 0:00:53]}  Kd5 {[%clk 0:00:02]} 42. Ke3 {[%clk 0:00:54]}  Ke5 {[%clk 0:00:02]} 43. Bg7+ {[%clk 0:00:54]}  Ke6 {[%clk 0:00:02]} 44. Kf4 {[%clk 0:00:54]}  Kd5 {[%clk 0:00:02]} 45. Kg5 {[%clk 0:00:55]} 1-0


[Site "https://www.chess.com"]

[Event "Titled Tuesday Blitz May 10 Early 2022"]
[White "Broca Jimenez, Fernando"]
[Black "Iljin, Timofey"]
[WhiteFideId "5104742"]
[BlackFideId "14110180"]
[WhiteElo "2062"]
[BlackElo "2404"]
[Result "0-1"]
[Round "06"]
[TimeControl "180+1"]
[Date "2022.05.11"]
[WhiteClock "0:00:04"]
[BlackClock "0:01:10"]

1. e4 {[%clk 0:03:00]}  d5 {[%clk 0:03:00]} 2. exd5 {[%clk 0:03:00]}  Nf6 {[%clk 0:03:01]} 3. c4 {[%clk 0:03:00]}  Bg4 {[%clk 0:03:02]} 4. f3 {[%clk 0:02:57]}  Bf5 {[%clk 0:03:02]} 5. d4 {[%clk 0:02:56]}  c6 {[%clk 0:03:02]} 6. Nc3 {[%clk 0:02:54]}  cxd5 {[%clk 0:03:02]} 7. Bg5 {[%clk 0:02:54]}  e6 {[%clk 0:03:01]} 8. Qb3 {[%clk 0:02:49]}  Nbd7 {[%clk 0:02:58]} 9. cxd5 {[%clk 0:02:42]}  Bd6 {[%clk 0:02:56]} 10. dxe6 {[%clk 0:02:38]}  Bxe6 {[%clk 0:02:57]} 11. d5 {[%clk 0:02:38]}  Bf5 {[%clk 0:02:53]} 12. Bb5 {[%clk 0:02:35]}  O-O {[%clk 0:02:53]} 13. Nge2 {[%clk 0:02:33]}  Nc5 {[%clk 0:02:51]} 14. Qd1 {[%clk 0:02:28]}  a6 {[%clk 0:02:51]} 15. Ba4 {[%clk 0:02:22]}  Nd3+ {[%clk 0:02:49]} 16. Kf1 {[%clk 0:02:11]}  Qb6 {[%clk 0:02:49]} 17. Bh4 {[%clk 0:01:56]}  g5 {[%clk 0:02:35]} 18. Be1 {[%clk 0:01:51]}  Nxb2 {[%clk 0:02:32]} 19. Qb3 {[%clk 0:01:47]}  Nxa4 {[%clk 0:02:28]} 20. Qxa4 {[%clk 0:01:40]}  Qe3 {[%clk 0:02:27]} 21. Bf2 {[%clk 0:01:38]}  Qe7 {[%clk 0:02:24]} 22. Re1 {[%clk 0:01:30]}  Rfe8 {[%clk 0:02:24]} 23. g4 {[%clk 0:01:19]}  Bd3 {[%clk 0:02:23]} 24. Kg2 {[%clk 0:01:18]}  b5 {[%clk 0:02:23]} 25. Qd1 {[%clk 0:01:15]}  Bc4 {[%clk 0:02:23]} 26. Ng3 {[%clk 0:01:10]}  Qb7 {[%clk 0:02:22]} 27. Nf5 {[%clk 0:01:08]}  Bb4 {[%clk 0:02:22]} 28. Bd4 {[%clk 0:00:59]}  Nxd5 {[%clk 0:02:19]} 29. Nh6+ {[%clk 0:00:55]}  Kf8 {[%clk 0:02:19]} 30. Ne4 {[%clk 0:00:55]}  Nf4+ {[%clk 0:02:17]} 31. Kg1 {[%clk 0:00:48]}  Rad8 {[%clk 0:02:13]} 32. Qa1 {[%clk 0:00:44]}  Ne6 {[%clk 0:01:46]} 33. Bf2 {[%clk 0:00:20]}  Bxe1 {[%clk 0:01:31]} 34. Bxe1 {[%clk 0:00:14]}  Nd4 {[%clk 0:01:29]} 35. Bb4+ {[%clk 0:00:13]}  Re7 {[%clk 0:01:24]} 36. Nxg5 {[%clk 0:00:09]}  Qb6 {[%clk 0:01:15]} 37. Kg2 {[%clk 0:00:09]}  Qxh6 {[%clk 0:01:14]} 38. Bxe7+ {[%clk 0:00:05]}  Kxe7 {[%clk 0:01:14]} 39. Re1+ {[%clk 0:00:05]}  Be6 {[%clk 0:01:15]} 40. Nxe6 {[%clk 0:00:02]}  fxe6 {[%clk 0:01:15]} 41. Qc3 {[%clk 0:00:02]}  Qf4 {[%clk 0:01:13]} 42. Qc5+ {[%clk 0:00:02]}  Kf7 {[%clk 0:01:12]} 43. Re4 {[%clk 0:00:02]}  Qxf3+ {[%clk 0:01:11]} 44. Kg1 {[%clk 0:00:02]}  Qxe4 {[%clk 0:01:11]} 45. Qh5+ {[%clk 0:00:03]}  Ke7 {[%clk 0:01:10]} 46. Qxh7+ {[%clk 0:00:04]}  Qxh7 {[%clk 0:01:10]} 0-1


[Site "https://www.chess.com"]

[Event "Titled Tuesday Blitz May 10 Early 2022"]
[White "Carlsen, Magnus"]
[Black "Meshkovs, Nikita"]
[WhiteFideId "1503014"]
[BlackFideId "11602740"]
[WhiteElo "2832"]
[BlackElo "2506"]
[Result "1-0"]
[Round "06"]
[TimeControl "180+1"]
[Date "2022.05.10"]
[WhiteClock "0:00:47"]
[BlackClock "0:00:03"]

1. b3 {[%clk 0:03:00]}  Nf6 {[%clk 0:02:58]} 2. Bb2 {[%clk 0:02:59]}  g6 {[%clk 0:02:58]} 3. g3 {[%clk 0:02:55]}  Bg7 {[%clk 0:02:58]} 4. Bg2 {[%clk 0:02:56]}  O-O {[%clk 0:02:57]} 5. Nf3 {[%clk 0:02:56]}  c5 {[%clk 0:02:53]} 6. c4 {[%clk 0:02:54]}  Nc6 {[%clk 0:02:51]} 7. O-O {[%clk 0:02:54]}  b6 {[%clk 0:02:48]} 8. d4 {[%clk 0:02:51]}  cxd4 {[%clk 0:02:47]} 9. Nxd4 {[%clk 0:02:51]}  Bb7 {[%clk 0:02:48]} 10. Nc3 {[%clk 0:02:51]}  Rc8 {[%clk 0:02:40]} 11. Qd2 {[%clk 0:02:46]}  Qc7 {[%clk 0:02:37]} 12. Nc2 {[%clk 0:02:44]}  Qb8 {[%clk 0:02:21]} 13. Rac1 {[%clk 0:02:42]}  Rfd8 {[%clk 0:02:18]} 14. Rfd1 {[%clk 0:02:33]}  h5 {[%clk 0:02:10]} 15. Ne3 {[%clk 0:02:33]}  Bh6 {[%clk 0:01:23]} 16. Ncd5 {[%clk 0:02:29]}  Nxd5 {[%clk 0:01:09]} 17. cxd5 {[%clk 0:02:27]}  Ne5 {[%clk 0:01:10]} 18. f4 {[%clk 0:02:23]}  Ng4 {[%clk 0:01:04]} 19. Qd4 {[%clk 0:02:13]}  Kh7 {[%clk 0:00:56]} 20. Nxg4 {[%clk 0:02:07]}  hxg4 {[%clk 0:00:57]} 21. d6 {[%clk 0:01:57]}  Rxc1 {[%clk 0:00:48]} 22. Rxc1 {[%clk 0:01:48]}  Bxg2 {[%clk 0:00:40]} 23. Kxg2 {[%clk 0:01:44]}  exd6 {[%clk 0:00:28]} 24. Qd5 {[%clk 0:01:38]}  Qa8 {[%clk 0:00:17]} 25. Qxa8 {[%clk 0:01:35]}  Rxa8 {[%clk 0:00:18]} 26. Rc7 {[%clk 0:01:35]}  Bg7 {[%clk 0:00:16]} 27. Ba3 {[%clk 0:01:32]}  Re8 {[%clk 0:00:14]} 28. Kf1 {[%clk 0:01:31]}  Bd4 {[%clk 0:00:05]} 29. Bxd6 {[%clk 0:01:18]}  Kg8 {[%clk 0:00:02]} 30. Rxa7 {[%clk 0:01:16]}  Re6 {[%clk 0:00:03]} 31. Rxd7 {[%clk 0:01:16]}  b5 {[%clk 0:00:02]} 32. Bb4 {[%clk 0:01:11]}  Be3 {[%clk 0:00:02]} 33. Re7 {[%clk 0:00:48]}  Rxe7 {[%clk 0:00:02]} 34. Bxe7 {[%clk 0:00:49]}  f5 {[%clk 0:00:03]} 35. Kg2 {[%clk 0:00:48]}  Kf7 {[%clk 0:00:03]} 36. Bb4 {[%clk 0:00:48]}  Ke6 {[%clk 0:00:04]} 37. h3 {[%clk 0:00:48]}  Kd5 {[%clk 0:00:03]} 38. hxg4 {[%clk 0:00:47]}  fxg4 {[%clk 0:00:04]} 39. Be1 {[%clk 0:00:46]}  Ke4 {[%clk 0:00:04]} 40. a4 {[%clk 0:00:46]}  bxa4 {[%clk 0:00:04]} 41. bxa4 {[%clk 0:00:47]}  Kd5 {[%clk 0:00:05]} 42. a5 {[%clk 0:00:46]}  Kc6 {[%clk 0:00:04]} 43. Bf2 {[%clk 0:00:47]}  Bd2 {[%clk 0:00:04]} 44. a6 {[%clk 0:00:47]}  Kc7 {[%clk 0:00:04]} 45. e4 {[%clk 0:00:47]}  Ba5 {[%clk 0:00:04]} 46. e5 {[%clk 0:00:47]}  Bb4 {[%clk 0:00:04]} 47. e6 {[%clk 0:00:46]}  Kc8 {[%clk 0:00:04]} 48. Bb6 {[%clk 0:00:46]}  Kb8 {[%clk 0:00:04]} 49. Kf2 {[%clk 0:00:46]}  Ka8 {[%clk 0:00:03]} 50. Ke3 {[%clk 0:00:47]} 1-0


[Site "https://www.chess.com"]

[Event "Titled Tuesday Blitz May 10 Early 2022"]
[White "Clarke, Brandon G I"]
[Black "Fier, Alexandr"]
[WhiteFideId "400319"]
[BlackFideId "2107139"]
[WhiteElo "2414"]
[BlackElo "2571"]
[Result "0-1"]
[Round "06"]
[TimeControl "180+1"]
[Date "2022.05.10"]
[WhiteClock "0:00:05"]
[BlackClock "0:02:01"]

1. e4 {[%clk 0:03:00]}  c5 {[%clk 0:02:57]} 2. Nf3 {[%clk 0:03:01]}  d6 {[%clk 0:02:57]} 3. d4 {[%clk 0:03:01]}  cxd4 {[%clk 0:02:58]} 4. Nxd4 {[%clk 0:03:02]}  Nf6 {[%clk 0:02:58]} 5. Nc3 {[%clk 0:03:03]}  g6 {[%clk 0:02:59]} 6. f3 {[%clk 0:03:03]}  Bg7 {[%clk 0:03:00]} 7. Be3 {[%clk 0:03:04]}  O-O {[%clk 0:03:00]} 8. Qd2 {[%clk 0:03:05]}  Nc6 {[%clk 0:03:01]} 9. Bc4 {[%clk 0:03:06]}  Bd7 {[%clk 0:02:59]} 10. O-O-O {[%clk 0:03:06]}  Rc8 {[%clk 0:02:59]} 11. Bb3 {[%clk 0:03:06]}  Nxd4 {[%clk 0:02:59]} 12. Bxd4 {[%clk 0:03:07]}  b5 {[%clk 0:02:59]} 13. Nd5 {[%clk 0:03:08]}  Nxd5 {[%clk 0:02:55]} 14. Bxg7 {[%clk 0:03:08]}  Kxg7 {[%clk 0:02:55]} 15. exd5 {[%clk 0:03:09]}  a5 {[%clk 0:02:55]} 16. a3 {[%clk 0:03:10]}  Qb6 {[%clk 0:02:42]} 17. Rhe1 {[%clk 0:03:06]}  h5 {[%clk 0:02:43]} 18. Rxe7 {[%clk 0:02:53]}  Bf5 {[%clk 0:02:42]} 19. c3 {[%clk 0:02:54]}  b4 {[%clk 0:02:35]} 20. axb4 {[%clk 0:02:52]}  axb4 {[%clk 0:02:35]} 21. c4 {[%clk 0:02:43]}  Ra8 {[%clk 0:02:31]} 22. Qd4+ {[%clk 0:02:37]}  Qxd4 {[%clk 0:02:31]} 23. Rxd4 {[%clk 0:02:38]}  Kf6 {[%clk 0:02:32]} 24. Re1 {[%clk 0:02:27]}  Ra7 {[%clk 0:02:31]} 25. g4 {[%clk 0:02:24]}  hxg4 {[%clk 0:02:20]} 26. fxg4 {[%clk 0:02:25]}  Bd7 {[%clk 0:02:20]} 27. Kd2 {[%clk 0:01:57]}  Rh8 {[%clk 0:02:19]} 28. Re2 {[%clk 0:01:56]}  Rh3 {[%clk 0:02:19]} 29. Rd3 {[%clk 0:01:22]}  Bxg4 {[%clk 0:02:10]} 30. Rxh3 {[%clk 0:01:20]}  Bxh3 {[%clk 0:02:11]} 31. Rf2+ {[%clk 0:01:15]}  Ke5 {[%clk 0:02:11]} 32. Re2+ {[%clk 0:00:31]}  Kd4 {[%clk 0:02:09]} 33. Rf2 {[%clk 0:00:28]}  Bf5 {[%clk 0:02:06]} 34. Rf4+ {[%clk 0:00:28]}  Be4 {[%clk 0:02:06]} 35. Rf6 {[%clk 0:00:16]}  Ke5 {[%clk 0:02:05]} 36. Rf2 {[%clk 0:00:16]}  f5 {[%clk 0:02:06]} 37. Rf1 {[%clk 0:00:12]}  Kd4 {[%clk 0:02:04]} 38. Rg1 {[%clk 0:00:12]}  Rh7 {[%clk 0:02:04]} 39. Rxg6 {[%clk 0:00:09]}  Rxh2+ {[%clk 0:02:04]} 40. Kc1 {[%clk 0:00:09]}  Rh1+ {[%clk 0:02:04]} 41. Kd2 {[%clk 0:00:09]}  Rb1 {[%clk 0:02:04]} 42. Ba4 {[%clk 0:00:04]}  Rxb2+ {[%clk 0:02:05]} 43. Kc1 {[%clk 0:00:04]}  Ra2 {[%clk 0:02:02]} 44. Bb5 {[%clk 0:00:05]}  b3 {[%clk 0:02:01]} 0-1


[Site "https://www.chess.com"]

[Event "Titled Tuesday Blitz May 10 Early 2022"]
[White "Clawitter, Craig"]
[Black "Jodorcovsky Werjivker, Paulo"]
[WhiteFideId "2023105"]
[BlackFideId "3700305"]
[WhiteElo "2291"]
[BlackElo "2075"]
[Result "0-1"]
[Round "06"]
[TimeControl "180+1"]
[Date "2022.05.11"]
[WhiteClock "0:00:01"]
[BlackClock "0:01:00"]

1. e4 {[%clk 0:03:00]}  e5 {[%clk 0:02:58]} 2. Nf3 {[%clk 0:02:58]}  Nc6 {[%clk 0:02:55]} 3. Bb5 {[%clk 0:02:58]}  a6 {[%clk 0:02:54]} 4. Ba4 {[%clk 0:02:59]}  Nf6 {[%clk 0:02:54]} 5. O-O {[%clk 0:02:58]}  Be7 {[%clk 0:02:53]} 6. d3 {[%clk 0:02:55]}  b5 {[%clk 0:02:53]} 7. Bb3 {[%clk 0:02:56]}  O-O {[%clk 0:02:54]} 8. Nc3 {[%clk 0:02:54]}  Bc5 {[%clk 0:02:40]} 9. a4 {[%clk 0:02:45]}  Rb8 {[%clk 0:02:32]} 10. axb5 {[%clk 0:02:38]}  axb5 {[%clk 0:02:32]} 11. Bg5 {[%clk 0:02:38]}  h6 {[%clk 0:02:30]} 12. Bxf6 {[%clk 0:02:36]}  Qxf6 {[%clk 0:02:31]} 13. Nd5 {[%clk 0:02:37]}  Qd8 {[%clk 0:02:27]} 14. c3 {[%clk 0:02:37]}  d6 {[%clk 0:02:26]} 15. d4 {[%clk 0:02:35]}  exd4 {[%clk 0:02:23]} 16. cxd4 {[%clk 0:02:36]}  Ba7 {[%clk 0:02:22]} 17. Ne3 {[%clk 0:02:06]}  Bb6 {[%clk 0:02:18]} 18. Nd5 {[%clk 0:01:59]}  Ba7 {[%clk 0:02:16]} 19. Ne3 {[%clk 0:01:56]}  Bb6 {[%clk 0:02:05]} 20. Nd5 {[%clk 0:01:56]}  Bg4 {[%clk 0:02:05]} 21. Nxb6 {[%clk 0:01:37]}  Rxb6 {[%clk 0:02:06]} 22. Kh1 {[%clk 0:01:26]}  Qf6 {[%clk 0:01:55]} 23. Rc1 {[%clk 0:01:04]}  Bxf3 {[%clk 0:01:48]} 24. Qxf3 {[%clk 0:01:03]}  Qxf3 {[%clk 0:01:47]} 25. gxf3 {[%clk 0:01:04]}  Nxd4 {[%clk 0:01:48]} 26. Bd1 {[%clk 0:00:59]}  c5 {[%clk 0:01:47]} 27. b4 {[%clk 0:00:59]}  c4 {[%clk 0:01:41]} 28. f4 {[%clk 0:00:54]}  Ra8 {[%clk 0:01:31]} 29. Bg4 {[%clk 0:00:47]}  Ra4 {[%clk 0:01:30]} 30. Rfd1 {[%clk 0:00:48]}  Nb3 {[%clk 0:01:29]} 31. Rc3 {[%clk 0:00:40]}  Rxb4 {[%clk 0:01:28]} 32. Rg3 {[%clk 0:00:26]}  Nc5 {[%clk 0:01:23]} 33. Bf5 {[%clk 0:00:24]}  Nd3 {[%clk 0:01:20]} 34. Kg2 {[%clk 0:00:11]}  Nxf4+ {[%clk 0:01:19]} 35. Kf3 {[%clk 0:00:12]}  Nd3 {[%clk 0:01:20]} 36. h4 {[%clk 0:00:08]}  Rb2 {[%clk 0:01:20]} 37. h5 {[%clk 0:00:06]}  Rxf2+ {[%clk 0:01:19]} 38. Ke3 {[%clk 0:00:07]}  Rb2 {[%clk 0:01:12]} 39. Rdg1 {[%clk 0:00:07]}  Kf8 {[%clk 0:01:10]} 40. Rxg7 {[%clk 0:00:07]}  Ne5 {[%clk 0:01:04]} 41. Rg8+ {[%clk 0:00:01]}  Ke7 {[%clk 0:01:03]} 42. Rh8 {[%clk 0:00:02]}  Ra6 {[%clk 0:01:03]} 43. Kf4 {[%clk 0:00:02]}  Ra3 {[%clk 0:01:01]} 44. Rg3 {[%clk 0:00:01]}  Rf2+ {[%clk 0:01:00]} 0-1


[Site "https://www.chess.com"]

[Event "Titled Tuesday Blitz May 10 Early 2022"]
[White "Cramling Bellon, Anna"]
[Black "Shashikant, Kutwal"]
[WhiteFideId "32009232"]
[BlackFideId "5006520"]
[WhiteElo "1905"]
[BlackElo "2321"]
[Result "0-1"]
[Round "06"]
[TimeControl "180+1"]
[Date "2022.05.11"]
[WhiteClock "0:00:12"]
[BlackClock "0:01:12"]

1. d4 {[%clk 0:03:00]}  d5 {[%clk 0:02:59]} 2. c4 {[%clk 0:03:01]}  c6 {[%clk 0:02:59]} 3. Nf3 {[%clk 0:03:01]}  Nf6 {[%clk 0:02:59]} 4. Nc3 {[%clk 0:02:56]}  e6 {[%clk 0:02:59]} 5. e3 {[%clk 0:02:53]}  Nbd7 {[%clk 0:02:59]} 6. Bd3 {[%clk 0:02:53]}  Bd6 {[%clk 0:02:59]} 7. O-O {[%clk 0:02:52]}  Qe7 {[%clk 0:02:59]} 8. b3 {[%clk 0:02:52]}  O-O {[%clk 0:02:56]} 9. Bb2 {[%clk 0:02:52]}  dxc4 {[%clk 0:02:56]} 10. bxc4 {[%clk 0:02:50]}  e5 {[%clk 0:02:57]} 11. Bf5 {[%clk 0:02:22]}  Re8 {[%clk 0:02:48]} 12. d5 {[%clk 0:02:17]}  e4 {[%clk 0:02:40]} 13. Nd4 {[%clk 0:02:11]}  Nc5 {[%clk 0:02:31]} 14. dxc6 {[%clk 0:02:05]}  Qe5 {[%clk 0:02:24]} 15. f4 {[%clk 0:01:45]}  exf3 {[%clk 0:02:23]} 16. Nxf3 {[%clk 0:01:39]}  Qxe3+ {[%clk 0:02:05]} 17. Kh1 {[%clk 0:01:38]}  Bxf5 {[%clk 0:02:05]} 18. Qxd6 {[%clk 0:01:38]}  Nfe4 {[%clk 0:02:03]} 19. Nxe4 {[%clk 0:01:30]}  Nxe4 {[%clk 0:02:03]} 20. Qd4 {[%clk 0:01:13]}  Qh6 {[%clk 0:02:03]} 21. Kg1 {[%clk 0:01:00]}  bxc6 {[%clk 0:02:01]} 22. Rad1 {[%clk 0:00:56]}  c5 {[%clk 0:01:57]} 23. Qd5 {[%clk 0:00:25]}  Qe3+ {[%clk 0:01:25]} 24. Kh1 {[%clk 0:00:24]}  Nf2+ {[%clk 0:01:26]} 25. Rxf2 {[%clk 0:00:22]}  Qxf2 {[%clk 0:01:26]} 26. Bc3 {[%clk 0:00:15]}  Be4 {[%clk 0:01:21]} 27. Qg5 {[%clk 0:00:14]}  Bg6 {[%clk 0:01:18]} 28. h4 {[%clk 0:00:13]}  Qe3 {[%clk 0:01:14]} 29. Qg3 {[%clk 0:00:12]}  Qxc3 {[%clk 0:01:13]} 30. h5 {[%clk 0:00:12]}  Bxh5 {[%clk 0:01:12]} 0-1


[Site "https://www.chess.com"]

[Event "Titled Tuesday Blitz May 10 Early 2022"]
[White "Cunjalo, Faris"]
[Black "Guz, Ari"]
[WhiteFideId "14410710"]
[BlackFideId "2825759"]
[WhiteElo "2263"]
[BlackElo "1913"]
[Result "1-0"]
[Round "06"]
[TimeControl "180+1"]
[Date "2022.05.11"]
[WhiteClock "0:00:08"]
[BlackClock "0:00:25"]

1. d4 {[%clk 0:02:57]}  d5 {[%clk 0:02:56]} 2. c4 {[%clk 0:02:55]}  e6 {[%clk 0:02:56]} 3. Nf3 {[%clk 0:02:54]}  a6 {[%clk 0:02:56]} 4. cxd5 {[%clk 0:02:51]}  exd5 {[%clk 0:02:56]} 5. Nc3 {[%clk 0:02:50]}  h6 {[%clk 0:02:57]} 6. Bf4 {[%clk 0:02:50]}  Nf6 {[%clk 0:02:57]} 7. e3 {[%clk 0:02:49]}  Bd6 {[%clk 0:02:57]} 8. Bg3 {[%clk 0:02:46]}  O-O {[%clk 0:02:57]} 9. Bd3 {[%clk 0:02:46]}  c6 {[%clk 0:02:56]} 10. O-O {[%clk 0:02:45]}  Bxg3 {[%clk 0:02:55]} 11. hxg3 {[%clk 0:02:45]}  Bg4 {[%clk 0:02:56]} 12. Qb3 {[%clk 0:02:44]}  Qc7 {[%clk 0:02:50]} 13. Rac1 {[%clk 0:02:42]}  Be6 {[%clk 0:02:44]} 14. Ne5 {[%clk 0:02:32]}  Nbd7 {[%clk 0:02:39]} 15. Nxd7 {[%clk 0:02:32]}  Nxd7 {[%clk 0:02:30]} 16. Na4 {[%clk 0:02:26]}  Rab8 {[%clk 0:02:15]} 17. Qc3 {[%clk 0:02:11]}  Nf6 {[%clk 0:02:13]} 18. Nc5 {[%clk 0:02:10]}  Rfe8 {[%clk 0:02:02]} 19. b4 {[%clk 0:01:37]}  Qe7 {[%clk 0:01:57]} 20. a4 {[%clk 0:01:32]}  Ng4 {[%clk 0:01:56]} 21. Be2 {[%clk 0:01:33]}  Nf6 {[%clk 0:01:54]} 22. b5 {[%clk 0:01:30]}  axb5 {[%clk 0:01:52]} 23. axb5 {[%clk 0:01:31]}  Bg4 {[%clk 0:01:51]} 24. Bd3 {[%clk 0:01:29]}  Ne4 {[%clk 0:01:44]} 25. Bxe4 {[%clk 0:01:29]}  dxe4 {[%clk 0:01:44]} 26. bxc6 {[%clk 0:01:27]}  bxc6 {[%clk 0:01:45]} 27. Rb1 {[%clk 0:01:28]}  Rb5 {[%clk 0:01:37]} 28. Qc2 {[%clk 0:01:25]}  Bf5 {[%clk 0:01:33]} 29. Ra1 {[%clk 0:01:16]}  Reb8 {[%clk 0:01:27]} 30. Ra2 {[%clk 0:01:17]}  h5 {[%clk 0:01:19]} 31. Qe2 {[%clk 0:01:06]}  Bg4 {[%clk 0:01:15]} 32. Qc2 {[%clk 0:01:05]}  Bf5 {[%clk 0:01:15]} 33. Rfa1 {[%clk 0:00:35]}  h4 {[%clk 0:01:11]} 34. gxh4 {[%clk 0:00:36]}  Qxh4 {[%clk 0:01:11]} 35. Ra8 {[%clk 0:00:37]}  Rxa8 {[%clk 0:01:04]} 36. Rxa8+ {[%clk 0:00:38]}  Kh7 {[%clk 0:01:05]} 37. Ra1 {[%clk 0:00:39]}  Rb8 {[%clk 0:00:41]} 38. Nb3 {[%clk 0:00:33]}  Qf6 {[%clk 0:00:35]} 39. Nd2 {[%clk 0:00:31]}  Qg6 {[%clk 0:00:35]} 40. Rc1 {[%clk 0:00:28]}  Rc8 {[%clk 0:00:32]} 41. Nf1 {[%clk 0:00:28]}  Be6 {[%clk 0:00:30]} 42. Ng3 {[%clk 0:00:28]}  Bd5 {[%clk 0:00:30]} 43. Ne2 {[%clk 0:00:27]}  Qf5 {[%clk 0:00:25]} 44. Nf4 {[%clk 0:00:28]}  Ra8 {[%clk 0:00:23]} 45. Qc5 {[%clk 0:00:25]}  g5 {[%clk 0:00:18]} 46. Nxd5 {[%clk 0:00:24]}  cxd5 {[%clk 0:00:19]} 47. Qc2 {[%clk 0:00:11]}  Re8 {[%clk 0:00:19]} 48. Rb1 {[%clk 0:00:10]}  Re6 {[%clk 0:00:19]} 49. Rb7 {[%clk 0:00:11]}  Kg7 {[%clk 0:00:19]} 50. Qc8 {[%clk 0:00:08]}  Qg4 {[%clk 0:00:17]} 51. Rb1 {[%clk 0:00:04]}  Qh4 {[%clk 0:00:16]} 52. Qb8 {[%clk 0:00:02]}  Rh6 {[%clk 0:00:16]} 53. Kf1 {[%clk 0:00:02]}  Qh1+ {[%clk 0:00:16]} 54. Ke2 {[%clk 0:00:03]}  Qh5+ {[%clk 0:00:17]} 55. Kd2 {[%clk 0:00:03]}  Qg6 {[%clk 0:00:17]} 56. Qe5+ {[%clk 0:00:03]}  Qf6 {[%clk 0:00:17]} 57. Qxf6+ {[%clk 0:00:02]}  Rxf6 {[%clk 0:00:18]} 58. Ke2 {[%clk 0:00:03]}  Kg6 {[%clk 0:00:18]} 59. Rb5 {[%clk 0:00:02]}  Rf5 {[%clk 0:00:19]} 60. g4 {[%clk 0:00:02]}  Rf6 {[%clk 0:00:19]} 61. Rxd5 {[%clk 0:00:03]}  Ra6 {[%clk 0:00:19]} 62. Re5 {[%clk 0:00:04]}  Ra2+ {[%clk 0:00:18]} 63. Kf1 {[%clk 0:00:04]}  Ra1+ {[%clk 0:00:18]} 64. Kg2 {[%clk 0:00:05]}  Ra2 {[%clk 0:00:19]} 65. Rxe4 {[%clk 0:00:06]}  Ra6 {[%clk 0:00:19]} 66. Kf3 {[%clk 0:00:06]}  f6 {[%clk 0:00:20]} 67. d5 {[%clk 0:00:06]}  Ra8 {[%clk 0:00:21]} 68. Re6 {[%clk 0:00:06]}  Rd8 {[%clk 0:00:22]} 69. Ke4 {[%clk 0:00:06]}  Kf7 {[%clk 0:00:23]} 70. Rc6 {[%clk 0:00:06]}  Ra8 {[%clk 0:00:24]} 71. Kf5 {[%clk 0:00:07]}  Ra5 {[%clk 0:00:24]} 72. Rxf6+ {[%clk 0:00:07]}  Ke7 {[%clk 0:00:24]} 73. e4 {[%clk 0:00:08]}  Ra3 {[%clk 0:00:24]} 74. Kxg5 {[%clk 0:00:09]}  Ra4 {[%clk 0:00:24]} 75. e5 {[%clk 0:00:08]}  Re4 {[%clk 0:00:25]} 76. f4 {[%clk 0:00:08]} 1-0


[Site "https://www.chess.com"]

[Event "Titled Tuesday Blitz May 10 Early 2022"]
[White "De Silva, L M S T"]
[Black "Pinheiro, Iung Alicio de O."]
[WhiteFideId "9953698"]
[BlackFideId "2104350"]
[WhiteElo "1631"]
[BlackElo "2283"]
[Result "1-0"]
[Round "06"]
[TimeControl "180+1"]
[Date "2022.05.11"]
[WhiteClock "0:01:19"]
[BlackClock "0:00:25"]

1. e4 {[%clk 0:03:00]}  b6 {[%clk 0:02:55]} 2. d4 {[%clk 0:03:00]}  Bb7 {[%clk 0:02:55]} 3. Nc3 {[%clk 0:03:01]}  e6 {[%clk 0:02:55]} 4. a3 {[%clk 0:03:00]}  Nf6 {[%clk 0:02:35]} 5. Bd3 {[%clk 0:02:58]}  c5 {[%clk 0:02:23]} 6. dxc5 {[%clk 0:02:57]}  Bxc5 {[%clk 0:02:20]} 7. Nge2 {[%clk 0:02:56]}  Nc6 {[%clk 0:02:14]} 8. h3 {[%clk 0:02:55]}  O-O {[%clk 0:02:13]} 9. O-O {[%clk 0:02:53]}  Rc8 {[%clk 0:02:12]} 10. b4 {[%clk 0:02:44]}  Be7 {[%clk 0:02:11]} 11. Bb2 {[%clk 0:02:45]}  d5 {[%clk 0:02:06]} 12. exd5 {[%clk 0:02:42]}  Nxd5 {[%clk 0:02:06]} 13. Re1 {[%clk 0:02:33]}  a5 {[%clk 0:01:59]} 14. b5 {[%clk 0:02:17]}  Nxc3 {[%clk 0:01:50]} 15. Bxc3 {[%clk 0:02:08]}  Nb8 {[%clk 0:01:47]} 16. Qd2 {[%clk 0:01:57]}  Qd5 {[%clk 0:01:35]} 17. Nf4 {[%clk 0:01:56]}  Qg5 {[%clk 0:01:34]} 18. Re5 {[%clk 0:01:56]}  Qf6 {[%clk 0:01:04]} 19. Bxh7+ {[%clk 0:01:51]}  Kxh7 {[%clk 0:00:27]} 20. Rh5+ {[%clk 0:01:49]}  Kg8 {[%clk 0:00:27]} 21. Bxf6 {[%clk 0:01:48]}  Bxf6 {[%clk 0:00:28]} 22. Qd3 {[%clk 0:01:41]}  g6 {[%clk 0:00:25]} 23. Nxg6 {[%clk 0:01:42]}  Rfd8 {[%clk 0:00:25]} 24. Qg3 {[%clk 0:01:20]}  fxg6 {[%clk 0:00:25]} 25. Qxg6+ {[%clk 0:01:21]}  Bg7 {[%clk 0:00:25]} 26. Qxe6+ {[%clk 0:01:19]} 1-0


[Site "https://www.chess.com"]